fUST/lending_fUST_20241104
["ID","MTS","AMOUNT","RATE_DAILY","PERIOD"]
[341226150,1730699357747,-151.0,0.00033,14]
[341226151,1730699357768,-151.0,0.00033,14]
[341226152,1730699357790,-152.613709,0.00033,14]
[341226153,1730699357811,-151.0,0.00033,14]
[341226154,1730699357832,-151.0,0.00033,14]
[341226155,1730699357854,-337.402888,0.00033,14]
[341226156,1730699357878,-200.332513,0.00033,14]
[341226157,1730699357901,-337.402888,0.00033,14]
[341226158,1730699357924,-200.332513,0.00033,14]
[341226159,1730699357946,-245.32336,0.00033,14]
[341226160,1730699357968,-245.32336,0.00033,14]
[341226161,1730699357990,-151.0,0.00033,14]
[341226162,1730699358010,-151.0,0.00033,14]
[341226163,1730699358031,-151.0,0.00033,14]
[341226164,1730699358053,-151.0,0.00033,14]
[341226165,1730699358077,-312.246113,0.00033,14]
[341226166,1730699358107,-312.246113,0.00033,14]
[341226167,1730699358129,-986.110645,0.00033,14]
[341226168,1730699358152,-986.110645,0.00033,14]
[341226169,1730699358176,-151.0,0.00033,14]
[341226170,1730699358198,-151.0,0.00033,14]
[341226171,1730699358219,-151.0,0.00033,14]
[341226172,1730699358241,-151.0,0.00033,14]
[341226173,1730699358263,-156.868832,0.00033,14]
[341226174,1730699358284,-151.0,0.00033,14]
[341226175,1730699358306,-151.0,0.00033,14]
[341226176,1730699358327,-151.0,0.00033,14]
[341226177,1730699358348,-151.0,0.00033,14]
[341226178,1730699358370,-151.0,0.00033,14]
[341226179,1730699358391,-151.0,0.00033,14]
[341226180,1730699358413,-151.0,0.00033,14]
[341226181,1730699358436,-241.957286,0.00033,14]
[341226182,1730699358458,-546.882257,0.00033,14]
[341226183,1730699358480,-546.882257,0.00033,14]
[341226184,1730699358501,-151.0,0.00033,14]
[341226185,1730699358522,-151.0,0.00033,14]
[341226186,1730699358543,-151.0,0.00033,14]
[341226187,1730699358564,-151.0,0.00033,14]
[341226188,1730699358586,-546.882257,0.00033,14]
[341226189,1730699358607,-546.882257,0.00033,14]
[341226190,1730699358628,-500.0,0.0003315,4]
[341226191,1730699358649,-500.0,0.0003315,4]
[341226192,1730699358670,-500.0,0.0003315,4]
[341226193,1730699358692,-500.0,0.0003315,4]
[341226194,1730699358713,-1072.41,0.0003315,4]
[341226195,1730699358733,-500.0,0.0003315,4]
[341226196,1730699358754,-500.0,0.0003315,2]
[341226197,1730699358774,-500.0,0.0003315,4]
[341226198,1730699358795,-1127.85,0.0003315,4]
[341226199,1730699358817,-442.74868856,0.0003315,4]
[341226232,1730699438498,-92.31297838,0.00032876,4]
[341226234,1730699438597,-76.71622799,0.00032876,4]
[341226250,1730699443416,-12.99373082,0.00032876,4]
[341226251,1730699443461,-85.69517522,0.00032876,4]
[341226269,1730699446586,-232.28188759,0.00032876,4]
[341226270,1730699446596,-96.22436827,0.00032876,3]
[341226271,1730699446627,-17.05153486,0.00032876,3]
[341226272,1730699470774,160.0,0.00030237,3]
[341226273,1730699535353,151.0,0.0003,120]
[341226274,1730699614361,173.560455,0.00013973,2]
[341226277,1730700330109,-174.0543092,0.00031191,2]
[341226278,1730700330130,-155.87971647,0.00032813,2]
[341226279,1730700368849,150.0,0.0002,2]
[341226280,1730700369195,150.0,0.00017,2]
[341226281,1730700369586,150.0,0.00013,2]
[341226282,1730700371038,150.0,0.0001,2]
[341226283,1730700374824,150.0,0.00017,30]
[341226284,1730700375285,150.0,0.00014,30]
[341226285,1730700375667,150.0,0.0001,30]
[341226286,1730700426104,-2990.87010599,0.000209,2]
[341226287,1730700454108,-21338.20176726,0.000209,2]
[341226288,1730700454133,-150.0,0.00021,30]
[341226289,1730700454157,-150.0,0.00024,2]
[341226290,1730700454180,-150.0,0.00024,30]
[341226291,1730700454203,-150.0,0.00027,2]
[341226292,1730700454226,-150.0,0.00028,30]
[341226293,1730700454248,-150.0,0.00031,2]
[341226294,1730700454269,-150.0,0.00031,30]
[341226295,1730700454291,-500.0,0.0003287,2]
[341226296,1730700454313,-500.0,0.00032876,4]
[341226297,1730700454335,-500.0,0.00032999,7]
[341226298,1730700454359,-239.0,0.00033,2]
[341226299,1730700454381,-400.0,0.00033148,2]
[341226300,1730700454409,-500.0,0.00033149,4]
[341226301,1730700454437,-500.0,0.00033149,4]
[341226302,1730700454465,-500.0,0.00033149,4]
[341226303,1730700454491,-983.04,0.00033149,4]
[341226304,1730700454520,-500.0,0.00033149,2]
[341226305,1730700454550,-1033.86,0.00033149,4]
[341226306,1730700454581,-500.12053997,0.0003315,4]
[341226307,1730700454609,-239.0,0.00033151,2]
[341226308,1730700454638,-500.0,0.00033199,4]
[341226309,1730700454666,-1019.80738499,0.00033199,2]
[341226310,1730700554123,-151.0,0.0003,120]
[341226362,1730700640655,-171.907878,0.00031762,2]
[341226363,1730700640665,-500.0,0.00031965,30]
[341226364,1730700640675,-500.0,0.00031965,30]
[341226365,1730700640684,-500.0,0.00031965,30]
[341226366,1730700640694,-151.0,0.00032411,120]
[341226367,1730700640704,-500.0,0.00033149,4]
[341226368,1730700640713,-400.0,0.00033198,2]
[341226369,1730700640723,-480.19261501,0.00033199,2]
[341226370,1730700640732,-500.0,0.00033199,4]
[341226371,1730700640742,-190.69360657,0.00033199,4]
[341226391,1730700646576,-309.30639343,0.00033199,4]
[341226392,1730700646586,-500.0,0.00033299,4]
[341226393,1730700646596,-500.0,0.00033299,7]
[341226394,1730700646606,-205.17379576,0.00033299,7]
[341226395,1730700646617,-500.0,0.00033299,7]
[341226396,1730700646626,-500.0,0.00033299,7]
[341226397,1730700646636,-500.0,0.00033299,7]
[341226398,1730700646646,-500.0,0.00033299,7]
[341226399,1730700646656,-500.0,0.00033299,7]
[341226400,1730700646665,-500.0,0.00033299,4]
[341226401,1730700646675,-500.0,0.00033299,4]
[341226402,1730700646684,-500.0,0.00033299,4]
[341226403,1730700646693,-2635.0,0.00033299,3]
[341226404,1730700646703,-500.0,0.00033299,4]
[341226405,1730700646713,-10198.8222047,0.000333,2]
[341226406,1730700646723,-265.2652597,0.00033315,2]
[341226407,1730700646732,-153.0,0.00033315,2]
[341226408,1730700646741,-153.0,0.00033315,2]
[341226409,1730700646751,-153.0,0.00033315,2]
[341226410,1730700646760,-153.0,0.00033315,2]
[341226411,1730700646769,-2168.25954662,0.00033323,2]
[341226412,1730700646782,-500.0,0.0003337,2]
[341226413,1730700646791,-150.326,0.00033372,2]
[341226414,1730700646801,-150.0,0.00033372,2]
[341226415,1730700646810,-528.0,0.00033372,2]
[341226416,1730700646820,-742.732,0.00033372,2]
[341226417,1730700646829,-784.537,0.00033372,2]
[341226418,1730700646838,-155.63,0.000334,31]
[341226419,1730700646849,-155.63,0.000334,31]
[341226420,1730700646858,-273.42983684,0.00033408,2]
[341226421,1730700646868,-178.86049703,0.00033408,2]
[341226422,1730700648158,-3192.71240667,0.00033408,2]
[341226423,1730700648168,-229.84644802,0.00033423,4]
[341226424,1730700648180,-270.15355198,0.00033423,4]
[341226425,1730700648189,-500.0,0.00033423,4]
[341226426,1730700648198,-983.04,0.00033423,4]
[341226427,1730700648208,-500.0,0.00033423,2]
[341226428,1730700648217,-1033.86,0.00033423,4]
[341226429,1730700648228,-500.0,0.00033423,4]
[341226430,1730700648238,-151.0,0.00033424,14]
[341226431,1730700648248,-500.0,0.00033473,4]
[341226432,1730700648258,-500.0,0.00033473,4]
[341226433,1730700648268,-500.0,0.00033473,4]
[341226434,1730700648278,-222.38,0.00033492,3]
[341226435,1730700648287,-667.15,0.00033492,3]
[341226436,1730700648296,-210.0,0.000335,30]
[341226437,1730700648305,-200.0,0.000335,22]
[341226438,1730700648315,-619.48315055,0.00033501,2]
[341226439,1730700648325,-9649.8720226,0.00033502,2]
[341226447,1730701554143,-202.842514,0.00031174,2]
[341226448,1730701554165,-171.49821235,0.00031707,2]
[341226449,1730701558107,-1917.75966305,0.00031707,2]
[341226450,1730701558134,-270.049041,0.00031729,2]
[341226451,1730701558158,-285.9010051,0.00031742,2]
[341226452,1730701558181,-349.51296322,0.0003287,2]
[341226453,1730701637107,-151.0,0.0003,120]
[341226454,1730701637129,-151.0,0.0003,120]
[341226455,1730701637151,-151.0,0.00032603,120]
[341226456,1730701637171,-150.48703678,0.0003287,2]
[341226457,1730701637192,-179.0,0.00033,2]
[341226458,1730701637211,-179.0,0.00033151,2]
[341226459,1730701637232,-500.0,0.00033199,4]
[341226460,1730701637252,-505.59,0.00033299,4]
[341226461,1730701637276,-500.0,0.00033299,4]
[341226462,1730701637296,-500.0,0.00033299,4]
[341226463,1730701637316,-523.592856,0.0003337,2]
[341226464,1730701637339,-155.64,0.000334,31]
[341226465,1730701637362,-155.64,0.000334,31]
[341226466,1730701637384,-1897.22710331,0.000334,2]
[341226467,1730701637405,-498.26468014,0.00033473,4]
[341226468,1730701637425,-444.76,0.00033491,3]
[341226469,1730701637447,-356.13042175,0.00033499,7]
[341226470,1730701637471,-97.51264887,0.00033499,4]
[341226473,1730701747145,-179.851459,0.00023,2]
[341226474,1730701747165,-1104.70336074,0.00025,2]
[341226475,1730701747186,-14138.62090305,0.0002509,2]
[341226476,1730701756134,-151.0,0.0003,120]
[341226477,1730701756156,-167.12339124,0.0003,2]
[341226789,1730701839288,-982.86300605,0.00031969,30]
[341226790,1730701839300,-500.0,0.00031969,30]
[341226791,1730701839313,-500.0,0.00031969,30]
[341226792,1730701839324,-500.0,0.00031969,30]
[341226793,1730701839334,-500.0,0.00031969,30]
[341226794,1730701839344,-500.0,0.00031969,30]
[341226795,1730701839354,-500.0,0.00031969,30]
[341226796,1730701839364,-500.0,0.00031969,30]
[341226797,1730701839374,-500.0,0.00031969,30]
[341226798,1730701839384,-18537.37343049,0.00033,2]
[341226833,1730702160877,4087.0,0.00020186,2]
[341226834,1730702373251,362.80716073,0.00033503,30]
[341226835,1730702734111,-151.0,0.0003,120]
[341226836,1730702734133,-182.66961119,0.00030137,2]
[341226837,1730702734156,-202.842514,0.0003084,2]
[341226838,1730702734178,-1913.64498078,0.00031458,2]
[341226839,1730702747104,-253.77618762,0.00031458,2]
[341226840,1730702747127,-164.148819,0.00031767,2]
[341226841,1730702747150,-164.148819,0.00031789,2]
[341226842,1730702747171,-164.148819,0.00031812,2]
[341226843,1730702747192,-56.3921221,0.00031835,2]
[341226844,1730702838188,-188.88894788,0.00031618,2]
[341226845,1730702841096,-20.36920812,0.00031618,2]
[341226846,1730702841117,-162.9637635,0.0003174,2]
[341226847,1730702841139,-107.7566969,0.00031835,2]
[341226848,1730702841161,-110.59823211,0.00031857,2]
[341226849,1730702844095,-53.55058689,0.00031857,2]
[341226850,1730702844116,-164.148819,0.0003188,2]
[341226851,1730702844138,-21.6114987,0.00031903,2]
[341226852,1730702850113,-142.5373203,0.00031903,2]
[341226853,1730702850136,-164.148819,0.00031926,2]
[341226854,1730702850158,-687.31154444,0.00031945,120]
[341226855,1730702850181,-151.0,0.00032603,120]
[341226856,1730702850203,-500.0,0.0003287,2]
[341226857,1730702850224,-187.2007712,0.00032877,120]
[341226858,1730702850246,-209.258156,0.00032988,2]
[341226859,1730702850267,-400.0,0.00032998,2]
[341226860,1730702850288,-400.0,0.00032998,2]
[341226861,1730702850312,-500.0,0.00032999,4]
[341226862,1730702850332,-500.0,0.00032999,4]
[341226863,1730702850352,-500.0,0.00032999,4]
[341226864,1730702850374,-1059.51469123,0.00033,2]
[341226866,1730703013769,151.0,0.0003,120]
[341226910,1730703031865,-500.0,0.0003287,2]
[341226912,1730703031875,-1494.74981166,0.00033,2]
[341226914,1730703031884,-165.0,0.00033,2]
[341226916,1730703031894,-163.0,0.00033,2]
[341226918,1730703031903,-207.6040947,0.00033041,2]
[341226920,1730703031912,-165.3056832,0.00033123,2]
[341226922,1730703031921,-400.0,0.00033262,2]
[341226924,1730703031931,-400.0,0.00033262,2]
[341226926,1730703031942,-157.17,0.00033263,2]
[341226928,1730703031951,-500.0,0.00033273,4]
[341226930,1730703031961,-500.0,0.00033273,4]
[341226932,1730703031970,-720.053927,0.0003337,2]
[341226934,1730703031983,-609.98054993,0.0003339,4]
[341226936,1730703031992,-500.0,0.0003339,4]
[341226938,1730703032002,-2504.03196712,0.0003339,3]
[341227031,1730703038132,-44.63198896,0.0003339,3]
[341227071,1730703040065,-18.21604392,0.0003339,3]
[341227073,1730703040076,-303.20895877,0.0003339,2]
[341227075,1730703040085,-500.0,0.0003339,4]
[341227077,1730703040095,-901.12,0.00033391,4]
[341227079,1730703040104,-500.0,0.00033391,4]
[341227081,1730703040113,-500.0,0.00033391,2]
[341227083,1730703040123,-947.7,0.00033391,4]
[341227084,1730703040132,-500.0,0.00033391,4]
[341227085,1730703040143,-297.0286198,0.00033392,7]
[341227086,1730703040154,-251.297,0.00033393,2]
[341227087,1730703040163,-529.468,0.00033393,2]
[341227088,1730703040172,-551.64610436,0.00033393,2]
[341227093,1730703042377,244.90632139,0.00030137,2]
[341227119,1730703046035,-549.15789564,0.00033393,2]
[341227120,1730703046045,-2412.023,0.00033393,2]
[341227121,1730703046054,-269.713,0.00033393,2]
[341227122,1730703046064,-171.48173655,0.00033393,2]
[341227123,1730703046073,-171.48173655,0.00033396,2]
[341227124,1730703046082,-2020.46266986,0.00033399,2]
[341227125,1730703046091,-500.0,0.00033399,4]
[341227126,1730703046100,-500.0,0.00033399,4]
[341227127,1730703046110,-1241.39245086,0.00033399,120]
[341227128,1730703046121,-543.88108513,0.00033399,120]
[341227129,1730703046134,-78.3331535,0.00033399,120]
[341227130,1730703046144,-320.14163715,0.00033399,2]
[341227131,1730703046157,-93.31179482,0.000334,2]
[341227133,1730703952140,-166.666666,0.00031435,2]
[341227134,1730703952162,-375.2896677,0.00031973,2]
[341227135,1730703953096,-894.6813693,0.00031973,2]
[341227136,1730703953117,-554.41427565,0.00032085,2]
[341227138,1730703969376,150.0,0.0002,2]
[341227139,1730703969799,150.0,0.00016,2]
[341227140,1730703970176,150.0,0.00013,2]
[341227141,1730703970581,150.0,0.0001,2]
[341227142,1730703973871,150.0,0.00017,30]
[341227143,1730703974372,150.0,0.00014,30]
[341227144,1730703974826,150.0,0.0001,30]
[341227145,1730704025129,-1350.88889479,0.000209,2]
[341227146,1730704036099,-1639.9812112,0.000209,2]
[341227147,1730704036120,-150.0,0.00021,30]
[341227148,1730704036142,-150.0,0.00023,2]
[341227149,1730704036163,-150.0,0.00024,30]
[341227150,1730704036185,-150.0,0.00027,2]
[341227151,1730704036206,-150.0,0.00028,30]
[341227152,1730704036227,-150.0,0.0003,2]
[341227153,1730704036248,-400.0,0.00030753,2]
[341227154,1730704036271,-400.0,0.00030753,2]
[341227155,1730704036293,-794.78232515,0.00030754,2]
[341227156,1730704052095,-556.16606618,0.00030754,2]
[341227157,1730704163089,-151.0,0.0003,120]
[341227158,1730704221129,790.72950494,0.0002985,8]
[341227230,1730704238286,-1700.0,0.00030754,2]
[341227234,1730704238310,-171.24227607,0.00030754,2]
[341227236,1730704238320,-83.39305667,0.00031191,2]
[341227255,1730704238496,-90.66125253,0.00031191,2]
[341227257,1730704238507,-150.0,0.00032,30]
[341227259,1730704238517,-1269.971037,0.00032658,2]
[341227261,1730704238527,-172.118,0.0003271,30]
[341227263,1730704238536,-217.11314644,0.00032739,2]
[341227266,1730704238546,-151.0,0.0003274,120]
[341227278,1730704238653,-213.35457591,0.000329,2]
[341227280,1730704238669,-159.0,0.00033,2]
[341227282,1730704238678,-230.0,0.00033,2]
[341227284,1730704238689,-150.0,0.00033,2]
[341227286,1730704238698,-306.0,0.00033123,2]
[341227288,1730704238707,-372.0,0.00033149,2]
[341227290,1730704238718,-3572.26981254,0.00033151,2]
[341227292,1730704238728,-230.0,0.00033151,2]
[341227294,1730704238737,-1000.0,0.00033274,2]
[341227296,1730704238747,-745.13628463,0.00033289,2]
[341227298,1730704238756,-745.1362846,0.00033317,2]
[341227300,1730704238765,-1056.49676548,0.00033336,2]
[341227302,1730704238774,-1269.971037,0.00033343,2]
[341227304,1730704238784,-745.1362846,0.00033345,2]
[341227306,1730704238793,-186.0,0.00033354,2]
[341227308,1730704238803,-745.1362846,0.00033372,2]
[341227311,1730704238812,-500.0,0.00033374,2]
[341227313,1730704238821,-500.0,0.00033374,2]
[341227315,1730704238831,-500.0,0.00033374,2]
[341227317,1730704238840,-500.0,0.00033374,2]
[341227319,1730704238850,-500.0,0.00033374,2]
[341227321,1730704238859,-577.22638557,0.00033374,2]
[341227323,1730704238869,-326.0,0.00033375,2]
[341227325,1730704238878,-1000.0,0.00033379,2]
[341227327,1730704238887,-548.41286806,0.00033388,4]
[341227329,1730704238896,-500.0,0.00033388,4]
[341227331,1730704238905,-500.0,0.00033388,4]
[341227333,1730704238915,-500.0,0.00033388,4]
[341227335,1730704238925,-500.0,0.00033388,4]
[341227337,1730704238934,-500.0,0.00033388,4]
[341227339,1730704238944,-500.0,0.00033388,4]
[341227341,1730704238953,-500.0,0.00033388,4]
[341227343,1730704238962,-2552.65,0.00033388,3]
[341227345,1730704238971,-541.88730214,0.00033388,4]
[341227347,1730704238981,-500.0,0.00033389,4]
[341227349,1730704238991,-500.0,0.00033389,4]
[341227351,1730704239001,-500.0,0.00033389,4]
[341227353,1730704239011,-584.21682293,0.00033389,4]
[341227355,1730704239020,-500.0,0.00033389,4]
[341227357,1730704239029,-500.0,0.00033389,4]
[341227359,1730704239039,-515.76514162,0.00033389,4]
[341227361,1730704239048,-500.0,0.00033389,4]
[341227363,1730704239057,-513.99408743,0.00033389,4]
[341227365,1730704239067,-500.0,0.00033389,4]
[341227367,1730704239076,-500.0,0.00033389,4]
[341227369,1730704239086,-526.4186553,0.00033389,4]
[341227371,1730704239096,-302.13795375,0.00033389,4]
[341227373,1730704239105,-500.0,0.00033389,4]
[341227375,1730704239114,-500.0,0.00033389,4]
[341227377,1730704239123,-341.78713437,0.0003339,4]
[341227379,1730704239133,-500.0,0.0003339,4]
[341227382,1730704239143,-500.0,0.0003339,2]
[341227384,1730704239152,-151.0,0.0003339,14]
[341227386,1730704239161,-151.0,0.0003339,14]
[341227387,1730704239170,-151.0,0.0003339,14]
[341227390,1730704239180,-151.0,0.0003339,14]
[341227392,1730704239189,-151.0,0.0003339,14]
[341227394,1730704239199,-151.0,0.0003339,14]
[341227396,1730704239208,-503.06382103,0.00033391,4]
[341227398,1730704239217,-500.0,0.00033391,2]
[341227400,1730704239227,-249.796891,0.00033391,14]
[341227402,1730704239236,-249.796891,0.00033391,14]
[341227404,1730704239245,-151.0,0.00033391,14]
[341227406,1730704239254,-151.0,0.00033391,14]
[341227408,1730704239263,-303.662599,0.00033391,14]
[341227410,1730704239272,-303.662599,0.00033391,14]
[341227412,1730704239281,-151.0,0.00033391,14]
[341227414,1730704239291,-156.388889,0.00033391,14]
[341227416,1730704239300,-255.396164,0.00033391,14]
[341227418,1730704239309,-151.0,0.00033391,14]
[341227420,1730704239318,-255.396164,0.00033391,14]
[341227422,1730704239329,-151.0,0.00033391,14]
[341227424,1730704239338,-302.10146094,0.00033397,7]
[341227426,1730704239347,-303.06751613,0.00033397,7]
[341227428,1730704239356,-205.37790158,0.00033397,7]
[341227430,1730704239366,-500.0,0.00033398,4]
[341227432,1730704239375,-863.57,0.00033398,4]
[341227434,1730704239384,-500.0,0.00033398,2]
[341227436,1730704239394,-555.50246625,0.00033398,4]
[341227438,1730704239404,-500.0,0.00033398,2]
[341227440,1730704239413,-908.22,0.00033398,4]
[341227442,1730704239423,-500.0,0.00033398,4]
[341227444,1730704239432,-577.92700019,0.00033398,4]
[341227446,1730704239441,-510.62307085,0.00033398,4]
[341227448,1730704239451,-151.0,0.00033398,14]
[341227450,1730704239461,-500.0,0.00033398,4]
[341227452,1730704239471,-517.86474308,0.00033398,4]
[341227454,1730704239481,-500.0,0.00033398,4]
[341227456,1730704239490,-500.0,0.00033398,4]
[341227458,1730704239499,-151.0,0.00033398,14]
[341227460,1730704239508,-617.53453115,0.00033398,4]
[341227462,1730704239517,-151.0,0.00033398,14]
[341227464,1730704239527,-151.0,0.00033398,14]
[341227466,1730704239536,-500.0,0.00033398,2]
[341227468,1730704239545,-502.8439494,0.00033398,4]
[341227470,1730704239554,-511.11596136,0.00033398,4]
[341227472,1730704239564,-151.0,0.00033398,14]
[341227474,1730704239573,-151.0,0.00033398,14]
[341227476,1730704239583,-151.0,0.00033398,14]
[341227478,1730704239593,-500.0,0.00033398,4]
[341227481,1730704239602,-151.0,0.00033398,14]
[341227484,1730704239611,-588.12817721,0.00033398,4]
[341227486,1730704239620,-564.90776035,0.00033398,4]
[341227488,1730704239629,-249.796891,0.00033398,14]
[341227490,1730704239644,-249.796891,0.00033398,14]
[341227492,1730704239654,-249.796891,0.00033398,14]
[341227494,1730704239663,-249.796891,0.00033398,14]
[341227496,1730704239673,-151.0,0.00033398,14]
[341227498,1730704239683,-500.0,0.00033398,4]
[341227500,1730704239692,-151.0,0.00033398,14]
[341227502,1730704239701,-538.29012554,0.00033398,4]
[341227504,1730704239710,-232.050002,0.00033398,14]
[341227506,1730704239719,-303.662599,0.00033398,14]
[341227508,1730704239729,-303.662599,0.00033398,14]
[341227510,1730704239738,-303.662599,0.00033398,14]
[341227511,1730704239747,-303.662599,0.00033398,14]
[341227513,1730704239756,-151.0,0.00033398,14]
[341227515,1730704239766,-151.0,0.00033398,14]
[341227517,1730704239775,-255.396164,0.00033398,14]
[341227519,1730704239784,-255.396164,0.00033398,14]
[341227521,1730704239793,-151.0,0.00033398,14]
[341227523,1730704239802,-151.0,0.00033398,14]
[341227525,1730704239811,-255.396164,0.00033398,14]
[341227528,1730704239821,-255.396164,0.00033398,14]
[341227530,1730704239831,-151.0,0.00033398,14]
[341227532,1730704239840,-151.0,0.00033398,14]
[341227534,1730704239849,-500.0,0.00033398,4]
[341227536,1730704239859,-516.42848851,0.00033398,4]
[341227538,1730704239869,-313.81447196,0.00033399,4]
[341227540,1730704239878,-155.65,0.000334,31]
[341227542,1730704239887,-745.1362846,0.000334,2]
[341227543,1730704239896,-151.0,0.00033401,14]
[341227545,1730704239905,-164.507748,0.00033401,14]
[341227548,1730704239914,-151.0,0.00033401,14]
[341227550,1730704239923,-151.0,0.00033401,14]
[341227552,1730704239932,-151.0,0.00033401,14]
[341227554,1730704239942,-151.0,0.00033401,14]
[341227556,1730704239951,-255.396164,0.00033401,14]
[341227558,1730704239960,-246.093997,0.00033401,14]
[341227560,1730704239970,-255.396164,0.00033401,14]
[341227562,1730704239979,-151.0,0.00033403,14]
[341227564,1730704239989,-249.796891,0.00033405,14]
[341227566,1730704239998,-249.796891,0.00033405,14]
[341227568,1730704240007,-181.691674,0.00033405,14]
[341227570,1730704240017,-303.662599,0.00033405,14]
[341227572,1730704240026,-303.662599,0.00033405,14]
[341227574,1730704240036,-1000.75394748,0.00033405,2]
[341227576,1730704240045,-152.625139,0.00033406,14]
[341227578,1730704240054,-151.0,0.00033406,14]
[341227580,1730704240063,-151.0,0.00033406,14]
[341227582,1730704240072,-365.161758,0.00033406,14]
[341227584,1730704240082,-365.161758,0.00033406,14]
[341227586,1730704240091,-151.0,0.00033406,14]
[341227588,1730704240100,-199.901133,0.00033406,14]
[341227590,1730704240110,-151.0,0.00033406,14]
[341227592,1730704240119,-151.0,0.00033406,14]
[341227593,1730704240127,-180.299261,0.00033406,14]
[341227595,1730704240137,-437.505806,0.00033406,14]
[341227597,1730704240146,-437.505806,0.00033406,14]
[341227599,1730704240155,-894.974324,0.00033406,14]
[341227601,1730704240164,-894.974324,0.00033406,14]
[341227603,1730704240173,-152.934566,0.00033406,14]
[341227605,1730704240182,-151.0,0.00033406,14]
[341227607,1730704240191,-165.144727,0.00033406,14]
[341227609,1730704240200,-151.0,0.00033406,14]
[341227611,1730704240209,-151.0,0.00033406,14]
[341227613,1730704240219,-154.040447,0.00033406,14]
[341227615,1730704240228,-151.0,0.00033406,14]
[341227617,1730704240236,-151.0,0.00033406,14]
[341227618,1730704240247,-151.0,0.00033406,14]
[341227619,1730704240256,-184.532978,0.00033406,14]
[341227620,1730704240265,-151.0,0.00033406,14]
[341227621,1730704240274,-151.0,0.00033406,14]
[341227622,1730704240283,-249.796891,0.00033406,14]
[341227623,1730704240292,-249.796891,0.00033406,14]
[341227624,1730704240301,-249.796891,0.00033406,14]
[341227625,1730704240312,-249.796891,0.00033406,14]
[341227626,1730704240321,-303.662599,0.00033406,14]
[341227627,1730704240332,-303.662599,0.00033406,14]
[341227629,1730704240342,-303.662599,0.00033406,14]
[341227631,1730704240351,-303.662599,0.00033406,14]
[341227633,1730704240361,-151.0,0.00033406,14]
[341227635,1730704240370,-151.0,0.00033406,14]
[341227637,1730704240379,-151.0,0.00033406,14]
[341227639,1730704240389,-255.396164,0.00033406,14]
[341227641,1730704240399,-255.396164,0.00033406,14]
[341227643,1730704240408,-255.396164,0.00033406,14]
[341227645,1730704240417,-255.396164,0.00033406,14]
[341227647,1730704240427,-255.396164,0.00033406,14]
[341227649,1730704240436,-255.396164,0.00033406,14]
[341227651,1730704240446,-1000.0,0.00033406,2]
[341227653,1730704240456,-8282.88273884,0.00033406,2]
[341227655,1730704240466,-1000.0,0.00033416,2]
[341227657,1730704240475,-150.0,0.00033433,2]
[341227659,1730704240483,-150.0,0.00033433,2]
[341227661,1730704240492,-1144.0,0.00033433,2]
[341227663,1730704240501,-529.0,0.00033433,2]
[341227665,1730704240511,-252.64,0.00033484,3]
[341227667,1730704240520,-151.0,0.00033489,14]